Cogmind - Beta 16.1 @@@ ROGUE MODE // 2026.03.15 @ 15:57:08 Player: Steve French Result: Destroyed by S-10 Pest with Light Assault Rifle Performance ------------- Evolutions (0) 0 Regions Visited (1) 200 Robots Destroyed (12) 60 Value Destroyed (306) 306 Prototype IDs (0) 0 Alien Tech Used (0) 0 Bonus (0) 0 TOTAL SCORE: 566 Bonus ------- None Cogmind --------- Core Integrity 0/250 Matter 300/300 Energy 100/100 System Corruption 0% Temperature Cool (0) Movement Core (1350) Ox26 Location -10/Materials Parts ------- > --- POWER (1) -------- (None) > --- PROPULSION (2) --- (None) > --- UTILITY (2) ------ Huge Storage Unit > --- WEAPON (2) ------- (None) > --- INVENTORY (25) --- Ion Engine Large Storage Unit Light Armor Plating Light Armor Plating Peak State ------------ > --- POWER ------------ Light Ion Engine > --- PROPULSION ------- Aluminum Leg Aluminum Leg > --- UTILITY ---------- Large Storage Unit Light Armor Plating > --- WEAPON ----------- EM Pulse Gun Medium Laser > --- INVENTORY -------- Ion Engine Small Storage Unit EM Pulse Gun [Rating: 7] Favorites ----------- Power Light Ion Engine Engine Light Ion Engine Propulsion Aluminum Leg Leg Aluminum Leg Utility Light Armor Plating Storage Huge Storage Unit Protection Light Armor Plating Weapon EM Pulse Gun Energy Gun EM Pulse Gun Ballistic Gun Assault Rifle Special Melee Weapon Datajack Build | -11 -10 ------- Run | Yrd Mat Slots Evolved . | . . Power . | . . Propulsion . | . . Utility . | . . Weapon . | . . Parts Attached 15 | 1 14 Power 2 | . 2 Engine 2 | . 2 Core . | . . Reactor . | . . Propulsion 2 | . 2 Treads . | . . Leg 2 | . 2 Wheel . | . . Hover . | . . Flight . | . . Utility 6 | 1 5 Device . | . . Storage 3 | 1 2 Processor . | . . Hackware . | . . Protection 3 | . 3 Artifact . | . . Weapon 5 | . 5 Energy Gun 3 | . 3 Energy Cannon . | . . Ballistic Gun 1 | . 1 Ballistic Cannon . | . . Launcher . | . . Special Weapon . | . . Impact Weapon . | . . Slashing Weapon . | . . Piercing Weapon . | . . Special Melee Weapon 1 | . 1 Unidentified Prototypes . | . . Parts Lost 7 | . 7 Power 1 | . 1 Propulsion 2 | . 2 Utility 1 | . 1 Weapon 3 | . 3 Highest Loss Streak 7 | . 7 To Critical Strikes . | . . Average Backups 6 | 4 6 Power 1 | 1 1 Propulsion . | 1 . Utility 2 | . 3 Weapon 1 | 1 1 Tool/Special . | . . Unused Backups 1 | . 1 Power . | . . Propulsion . | . . Utility 1 | . 1 Weapon . | . . Tool/Special . | . . Average Slot Usage (%) 91 | . 91 Engine 12 | . 12 Leg 25 | . 25 Storage 14 | . 14 Protection 12 | . 12 Energy Gun 13 | . 13 Ballistic Gun 3 | . 3 Special Melee Weapon 8 | . 8 Peak Build Rating 7 | 1 7 Average Rating 6 | . 6 On Entrance . | . 1 Avg Prop Armor Cover (%) . | . . Naked Turns . | . . Heaviest Build 89 | 5 89 Greatest Support 20 | 3 20 Greatest Overweight (x) 26 | 1 26 Average Overweight (x) 1 | . 2 Largest Inventory Capacity 25 | 8 25 Average Capacity 19 | 6 19 Most Carried 8 | 7 8 Average Carried 6 | 5 6 Final Capacity 25 | 8 25 Final Carried 7 | 7 4 Class Distribution -------------------- 100% | Mutant Dominant Class ---------------- Mutant | -10/Materials Resources | -11 -10 ----------- Run | Yrd Mat Matter Collected 400 | 210 190 Remotely . | . . Salvage Created 400 | . 400 Parts 22 | . 22 Haulers Intercepted . | . . Recyclers Shooed . | . . Parts Field Recycled . | . . Retrieved Matter . | . . Parts Self-Destructed . | . . Prevented . | . . Parts Restored . | . . Kills | -11 -10 ------- Run | Yrd Mat Combat Hostiles Destroyed 7 | . 7 Guns 6 | . 6 Classes Destroyed 4 | . 4 Worker 1 | . 1 Builder 3 | . 3 Watcher 1 | . 1 Grunt 7 | . 7 Best Kill Streak 3 | . 3 Combat Bots Only 2 | . 2 Max Kills in Single Turn 1 | . 1 Gunslinging . | . . Exploded . | . . Melee . | . . Uniques/NPCs Destroyed . | . . Combat | -11 -10 -------- Run | Yrd Mat Hostile Shots Fired 127 | . 127 Missed 42 | . 42 Hits 85 | . 85 Projectile 85 | . 85 Critical Strikes 1 | . 1 Damage Taken 939 | . 939 Core 256 | . 256 Absorbed by Shields . | . . Core Remaining (%) 100 | 100 . Volleys Fired 60 | . 60 Largest 2 | . 2 Hottest 70 | . 70 Shots Fired 80 | . 80 Gun 80 | . 80 Cannon . | . . Launcher . | . . Special . | . . Kinetic 20 | . 20 Thermal 20 | . 20 Explosive . | . . Electromagnetic 40 | . 40 Robot Hit Streak 8 | . 8 Robot Miss Streak 4 | . 4 Penetration Max . | . . Secondary Targets . | . . Shots Hit Robots 50 | . 50 Core Hits 19 | . 19 Critical Kills . | . . Critical Parts Destroyed . | . . Critical Strikes 4 | . 4 Burn 4 | . 4 Melee Attacks 5 | . 5 Impact . | . . Slashing . | . . Piercing . | . . Sneak Attacks 3 | . 3 Combat Hostiles . | . . Follow-up Attacks . | . . Damage Inflicted 781 | . 781 Guns 664 | . 664 Cannons . | . . Explosions 117 | . 117 Melee . | . . Ramming . | . . Kinetic 191 | . 191 Thermal 307 | . 307 Explosive . | . . Electromagnetic 283 | . 283 Impact . | . . Slashing . | . . Piercing . | . . Highest Corruption . | . . Average Corruption . | . . Corruption Purged . | . . Corruption Blocked . | . . Overload Shots . | . . Overflow Damage . | . . Projectiles . | . . Explosions . | . . Melee . | . . Knockbacks . | . . Impact . | . . Kinetic . | . . Secondary . | . . Self-Inflicted Damage . | . . Shots . | . . Rammed . | . . Targets Rammed . | . . Kicked . | . . Crushed . | . . Highest Temperature 161 | . 161 Average Temperature 35 | . 35 Received Heat Transfer 378 | . 378 Siege Activations . | . . Martial Activations . | . . Shielding Activations . | . . Robots Disrupted . | . . Combat Hostiles . | . . Robots Corrupted 1 | . 1 Combat Hostiles 1 | . 1 Parts Fried . | . . Impact Corruptions . | . . Robots Melted . | . . Combat Hostiles . | . . Parts Melted 2 | . 2 Heat Transferred 1001 | . 1001 Parts Sabotaged . | . . Parts Stolen . | . . Parts Stripped . | . . Power Chain Reactions 2 | . 2 Alert | -11 -10 ------- Run | Yrd Mat Maximum Alert Level . | . . Low Security (%) 100 | 100 100 Level 1 . | . . Level 2 . | . . Level 3 . | . . Level 4 . | . . Level 5 . | . . High Security . | . . Max Security . | . . Peak Influence 80 | . 80 Initial . | . . Average 18 | . 19 Influence Increases 260 | . 260 Destroy 0b10 Robot/C 140 | . 140 Destroy 0b10 Robot/NC 25 | . 25 Destroy Leader 32 | . 32 Successful Hack 5 | . 5 Disable Machine 15 | . 15 Destroy Structure 13 | . 13 Lose Combat Pursuer 30 | . 30 Influence Decreases 260 | . 260 Time Decay 255 | . 255 Lost Part 5 | . 5 Squads Dispatched 2 | . 2 Investigation 2 | . 2 Extermination . | . . Reinforcement . | . . Assault . | . . Garrison . | . . Intercept . | . . Searches Triggered . | . . Construction Impeded . | . . Haulers Reinforced . | . . Active Scanning Responses . | . . Cargo Convoy Interrupts . | . . Stealth | -11 -10 --------- Run | Yrd Mat Distress Signals . | . . Communications Jammed . | . . Distress Signals . | . . Times Spotted 16 | . 16 Peak Tracking Total 4 | . 4 Tactical Retreats 2 | . 2 Traps | -11 -10 ------- Run | Yrd Mat Traps Triggered 1 | . 1 Indirectly . | . . Trap Hack Attempts . | . . Triggered . | . . Disarmed . | . . Reprogrammed . | . . Reused . | . . Traps Extracted . | . . Installed . | . . Triggered . | . . Machines | -11 -10 ---------- Run | Yrd Mat Machines Disabled 1 | . 1 Max in Single Turn 1 | . 1 Machines Repaired . | . . Machines Dismantled . | . . Machines Sabotaged . | . . Overloaded Fab Kills . | . . Hacking | -11 -10 --------- Run | Yrd Mat Machines Accessed 2 | . 2 Terminals 2 | . 2 Fabricators . | . . Repair Stations . | . . Recycling Units . | . . Scanalyzers . | . . Garrison Access . | . . Total Hacks 5 | . 5 Successful 4 | . 4 Failed 1 | . 1 Catastrophic . | . . Database Lockouts . | . . Manual . | . . Terminals 5 | . 5 Fabricators . | . . Repair Stations . | . . Recycling Units . | . . Scanalyzers . | . . Garrison Access . | . . Terminal Hacks 4 | . 4 Record 3 | . 3 Zone Layout 1 | . 1 Fabricator Hacks . | . . Repair Station Hacks . | . . Recycling Unit Hacks . | . . Scanalyzer . | . . Garrison Access Hacks . | . . Unauthorized Hacks . | . . Terminals . | . . Fabricators . | . . Repair Stations . | . . Recycling Units . | . . Scanalyzers . | . . Garrison Access . | . . Data Cores Recovered . | . . Used . | . . Hacking Detections . | . . Full Trace Events . | . . Feedback Events . | . . Feedback Blocked . | . . Robot Schematics Acquired . | . . Robots Built . | . . Authchips . | . . Time . | . . Total Robot Build Rating . | . . Part Schematics Acquired . | . . Parts Built . | . . Authchips . | . . Time . | . . Total Part Build Rating . | . . Part Studies Acquired . | . . Parts Repaired . | . . Time . | . . Parts Recycled . | . . Recycled Matter . | . . Retrieved Matter . | . . Retrieved Components . | . . Parts Scanalyzed . | . . Part Schematics Acquired . | . . Parts Damaged . | . . Bothacking | -11 -10 ------------ Run | Yrd Mat Used RIF Installer . | . . Robots Hacked 3 | . 3 Non-combat 3 | . 3 Combat . | . . Robot Hacks Applied 3 | . 3 parse_system 2 | . 2 find_recycling 1 | . 1 Relay Couplers Released . | . . Fabnet Peak Effective % . | . . Robots Rewired . | . . Allies Hacked . | . . Hacks Repelled . | . . Allies | -11 -10 -------- Run | Yrd Mat Total Allies . | . . Largest Group . | . . Highest-Rated Group . | . . Highest-Rated Ally . | . . Total Orders . | . . Ally Attacks . | . . Total Damage . | . . Kills . | . . Allies Corrupted . | . . Allies Melted . | . . Intel | -11 -10 ------- Run | Yrd Mat Active Infowar (turns) . | . . Robot Analysis Total . | . . Derelict Logs Recovered . | . . Drone Launches . | . . Drone Recoveries . | . . Exploration | -11 -10 ------------- Run | Yrd Mat Turns Passed 988 | 56 932 Spaces Moved 362 | 66 296 Core 96 | 66 30 Treads . | . . Legs 266 | . 266 Wheels . | . . Hover . | . . Flight . | . . Fastest Speed 50 | 50 100 Average Speed 223 | 73 256 Slowest Speed 1350 | 100 1350 Overloaded Moves . | . . Propulsion Burnouts . | . . Robots Hopped . | . . Potential Cave-ins . | . . Cave-ins Triggered . | . . Exploration Rate (%) 19 | 4 34 Regions Visited 1 Branch Regions . Pre-discovered Areas . | . . Known Exits Taken . | . . Unknown Exits Taken 1 | 1 . Scrap Searched . | . . Spaces Dug . | . . Terrain Destroyed 12 | . 12 Melee . | . . Projectile . | . . AOE 12 | . 12 Terrain Rammed . | . . Walls Destroyed . | . . Machines Disabled . | . . Actions | -11 -10 --------- Run | Yrd Mat Total 461 | 73 388 Wait . | . . Move 361 | 65 296 Hop . | . . Pick Up 14 | 7 7 Fast Attach 2 | 1 1 Attach 7 | . 7 Detach 1 | . 1 Swap 7 | . 7 Drop 4 | . 4 Fire 60 | . 60 Melee 5 | . 5 Ram . | . . Kick . | . . Crush . | . . Escape Stasis . | . . Rewire . | . . Trap . | . . Miscellaneous . | . . Route ------- -11/Scrapyard -10/Materials (discovered 1 exit: [Mat]) History --------- Turn | Location | Event 4 | -11/Scrapyard | Discovered new exit (range 14) 57 | -11/Scrapyard | Entered Materials 315 | -10/Materials | Build established: Mutant 578 | -10/Materials | Discovered new exit (range 15) 972 | -10/Materials | Core integrity fell below 50% 983 | -10/Materials | Core integrity fell below 20% 989 | -10/Materials | Destroyed by S-10 Pest with Light Assault Rifle Last Messages --------------- 00955_ R-06 Scavenger collects Terrain Scanner. 00955_ U-05 Engineer lays Concrete. 00957_ K-01 Serf collects debris. 00957_ U-05 Engineer lays Concrete. 00957_ K-01 Serf collects debris. 00958_ U-05 Engineer lays Concrete. 00962_ G-34 Mercenary misfires. 00962_ K-01 Serf collects debris. 00963_ U-05 Engineer lays Concrete. 00963_ Aluminum Leg destroyed. 00965_ U-05 Engineer lays Concrete. 00966_ G-34 Mercenary IFF system glitched. 00966_ K-01 Serf collects debris. 00966_ U-05 Engineer lays Concrete. 00970_ K-01 Serf cleans the Nuclear Reactor. 00982_ R-06 Scavenger collects Lgt. Assault Rifle. 00986_ R-06 Scavenger collects Lgt. Ion Engine. 00988_ G-34 Mercenary misfires. Map ----- +----------------------------------------------------+ | ????????????????????????# #????????# ## """" | | ????????????????????????# #????????# ## """"" | | ????????????????????????# #???????## ## """ | | ???????????????????????? ######### #[ | | ???????????????????????? #!%[ | | ???????????????????????? T #[ % | | ????????????????????????############# "##+##### | | ????????????????????????????????????######## ##??? | | ???????????????????????????????????????????# #???? | | ?????????????????#####?????????????????????# #???? | | ?????????????????# #?????????????######### ##??? | | ?????????????????# #?????????????# # #??? | | ?????????????????# #??######?????# T # #??? | | ?????????????????# #?##!!!!##????# / #??? | | ?????????????????# #?#! !#????# # #??? | | ?????????????????# #?# #????# # #??? | | ?????##########??? #?# ##????# # #??? | | ?????# ####+### ##########+### #### | | ?????# # %= | | ?????# + k* % | | ?????# # """ % | | ?????# ### """ g #####+### | | ?????# ???# """ ## | | ?????##########???# = % % ! ## """ | | ?????????########## % !! ## R" | | ?????? k r s @ ! ## """ | | ?????? s % ## | | ?????? ## | | ????????#+#############+######+####### ## | | ????????????????????# # ]#??# ## """ | | ????????????????????# # """ #??# ## """ | | ????????????????????# # """ #??# ## """ | | ????????????????????# # """ #### ## | | ????????????????????# # + #######+# | | ????????????????????# # #### #???????? | | ????????????????????#########+#####??# #???????? | | ?????????????????????????????????????# #???????? | | ?????????????????????????????????????# #???????? | | ?????????????????????????????????????# #???????? | | ?????????????????????????????????????# #???????? | | ?????????????????????????????????????# #???????? | | ?????????????????????????????????????# #???????? | | ?????????????????????????????????????# #???????? | | ?????????????????????????????????????# #???????? | | ?????????????????????????????????????# #???????? | | ?????????????????????????????????????# #???????? | | ????????????????????????????????????? ???????? | | ????????????????????????????????????? ???????? | | ?????????????????????????????????????#####???????? | | ?????????????????????????????????????????????????? | +----------------------------------------------------+ Best States ------------- Heat Dissipation 25 Energy Generation 10 Energy Capacity 250 Matter Stores 300 Matter Capacity 300 Sight Range 16 Terrain Scan Density 10 Armor Coverage 150 Evasion (%) 50 Item Schematics ----------------- None Robot Schematics ------------------ None Fabricated ------------ Nothing Repaired ---------- Nothing Studied --------- None Alien Tech Used ----------------- None Achievements -------------- DATA ERROR: Steam Global Achievement% Junior Dev Organ Harvest Power Corrupts There's More Where That Came From Challenges ------------ None Game ------ Seed AssaultDeuteriumShell Manual? 0 Play Time 00:13:03 Cumulative 2.6 hours Start 2026.03.15 @ 15:41:47 End 2026.03.15 @ 15:57:08 Sessions 1 Manual Loads 0 Difficulty Rogue Special Mode None Game No. 10 Rogue 10 Adventurer 0 Explorer 0 Win Type - Total 0 Types 0/0/0/0/0/0/0/0/0/0 Lore% 1 Gallery% 5 Achievement% 4 Wizard Run 0 Options --------- Layout 1 ASCII 0 Keyboard 0 Movement Mouse Keybinds 0 Fullscreen 1 Font 32/SmallcapsGlow Map View 50x35 Zoom Use 0% Tactical HUD 1 Map Filters NONE Filters NONE Steam 1 RUN: 860b7715-4e6a-4e84-887c-def6a7ce233e